Cogmind - Beta 16.1 *** ADVENTURER MODE // 2026.04.08 @ 12:13:27 Player: Voldy Result: Self-destructed Performance ------------- Evolutions (1) 500 Regions Visited (3) 600 Robots Destroyed (29) 145 Value Destroyed (599) 599 Prototype IDs (1) 20 Alien Tech Used (0) 0 Bonus (-58) -58 TOTAL SCORE: 1806 Bonus ------- Friendly Fire -58 Cogmind --------- Core Integrity 342/400 Matter 27/350 Energy 264/275 System Corruption 0% Temperature Cool (0) Movement Flying (34) Location -9/Mines Parts ------- > --- POWER (2) -------- Deuterium Engine > --- PROPULSION (3) --- Flight Unit Flight Unit Improved Flight Unit > --- UTILITY (2) ------ Small Matter Pod Weight Redist. System > --- WEAPON (2) ------- Missile Launcher > --- INVENTORY (5) ---- Flight Unit Weight Redist. System Rocket Launcher Missile Launcher Peak State ------------ > --- POWER ------------ Deuterium Engine Deuterium Engine > --- PROPULSION ------- Flight Unit Flight Unit Improved Flight Unit > --- UTILITY ---------- Improved Sensor Array Improved Sensor Array > --- WEAPON ----------- Missile Launcher Missile Launcher > --- INVENTORY -------- Flight Unit Improved Sensor Array Missile Launcher Missile Launcher [Rating: 24] Favorites ----------- Power Deuterium Engine Engine Deuterium Engine Propulsion Flight Unit Leg Aluminum Leg Wheel Wheel Flight Unit Flight Unit Utility Improved Sensor Array Device Improved Sensor Array Storage High-capacity Storage Unit Weapon Missile Launcher Ballistic Gun Light Assault Rifle Launcher Missile Launcher Build | -11 -10 -9 -9 ------- Run | Yrd Mat Mat Min Slots Evolved 2 | . . 2 . Power 1 | . . 1 . Propulsion 1 | . . 1 . Utility . | . . . . Weapon . | . . . . Parts Attached 22 | . 6 15 1 Power 5 | . 1 4 . Engine 5 | . 1 4 . Core . | . . . . Reactor . | . . . . Propulsion 7 | . 3 4 . Treads . | . . . . Leg 1 | . 1 . . Wheel 2 | . 2 . . Hover . | . . . . Flight 4 | . . 4 . Utility 6 | . 2 3 1 Device 4 | . 1 3 . Storage 2 | . 1 . 1 Processor . | . . . . Hackware . | . . . . Protection . | . . . . Artifact . | . . . . Weapon 4 | . . 4 . Energy Gun . | . . . . Energy Cannon . | . . . . Ballistic Gun . | . . . . Ballistic Cannon . | . . . . Launcher 4 | . . 4 . Special Weapon . | . . . . Impact Weapon . | . . . . Slashing Weapon . | . . . . Piercing Weapon . | . . . . Special Melee Weapon . | . . . . Unidentified Prototypes 1 | . . 1 . Parts Lost 2 | . . . 2 Power 1 | . . . 1 Propulsion . | . . . . Utility . | . . . . Weapon 1 | . . . 1 Highest Loss Streak 2 | . . . 2 To Critical Strikes . | . . . . Average Backups 5 | . 7 5 5 Power . | . 2 . . Propulsion 1 | . 2 . 1 Utility 1 | . . 1 2 Weapon 2 | . 1 2 2 Tool/Special . | . . . . Unused Backups 19 | . 3 13 3 Power 2 | . . 2 . Propulsion 3 | . 1 2 . Utility 6 | . . 4 2 Weapon 8 | . 2 5 1 Tool/Special . | . . . . Average Slot Usage (%) 91 | . 93 90 94 Engine 19 | . 13 21 19 Leg 3 | . 13 . . Wheel 5 | . 14 4 . Flight 20 | . . 24 33 Device 15 | . 9 15 21 Storage 5 | . 14 3 . Ballistic Gun 10 | . 28 6 . Launcher 12 | . . 14 19 Peak Build Rating 24 | . 8 24 23 Average Rating 16 | . 6 18 21 On Entrance 10 | 6 6 8 23 Avg Prop Armor Cover (%) . | . . . . Naked Turns . | . . . . Heaviest Build 61 | 12 49 61 31 Greatest Support 26 | 20 26 26 21 Greatest Overweight (x) 20 | . 2 20 1 Average Overweight (x) 1 | . . 1 . Largest Inventory Capacity 20 | . 20 20 5 Average Capacity 9 | . 14 9 5 Most Carried 12 | . 11 12 5 Average Carried 5 | . 7 5 4 Final Capacity 20 | 8 20 5 5 Final Carried 11 | 6 11 5 4 Class Distribution -------------------- 100% | Mutant Dominant Class ---------------- Mutant | -10/Materials Mutant | -9/Materials Mutant | -9/Mines Resources | -11 -10 -9 -9 ----------- Run | Yrd Mat Mat Min Matter Collected 657 | 200 48 222 187 Remotely . | . . . . Salvage Created 522 | . 81 298 143 Parts 50 | . 8 19 23 Haulers Intercepted 1 | . . 1 . Recyclers Shooed . | . . . . Parts Field Recycled . | . . . . Retrieved Matter . | . . . . Parts Self-Destructed . | . . . . Prevented . | . . . . Parts Restored . | . . . . Kills | -11 -10 -9 -9 ------- Run | Yrd Mat Mat Min Combat Hostiles Destroyed 20 | . 4 8 8 Guns 7 | . 4 3 . AOE 13 | . . 5 8 Classes Destroyed 10 | . 2 6 2 Worker 3 | . . . 3 Builder 1 | . . . 1 Tunneler 2 | . . 1 1 Hauler 1 | . . 1 . Recycler 1 | . . 1 . Operator 1 | . . 1 . Swarmer 9 | . 3 3 3 Grunt 9 | . 1 3 5 Brawler 1 | . . 1 . Sentry 1 | . . 1 . Best Kill Streak 5 | . 3 4 5 Combat Bots Only 5 | . 3 3 5 Max Kills in Single Turn 3 | . 1 3 2 Gunslinging . | . . . . Exploded 2 | . . 2 2 Melee . | . . . . Uniques/NPCs Destroyed . | . . . . Combat | -11 -10 -9 -9 -------- Run | Yrd Mat Mat Min Hostile Shots Fired 59 | . 17 32 10 Missed 10 | . 3 5 2 Hits 49 | . 14 27 8 Projectile 49 | . 14 27 8 Critical Strikes 2 | . . 2 . Damage Taken 494 | . 84 222 188 Core 77 | . 19 23 35 Absorbed by Shields . | . . . . Ignored by Resistances 148 | . 29 65 54 Core Remaining (%) 96 | 100 92 . . Volleys Fired 54 | . 15 24 15 Largest 2 | . 2 2 1 Hottest 72 | . 40 72 36 Shots Fired 84 | . 30 39 15 Gun 52 | . 30 22 . Cannon . | . . . . Launcher 32 | . . 17 15 Special . | . . . . Kinetic 52 | . 30 22 . Thermal . | . . . . Explosive 32 | . . 17 15 Electromagnetic . | . . . . Robot Hit Streak 15 | . 5 11 15 Robot Miss Streak 3 | . 3 3 1 Penetration Max . | . . . . Secondary Targets . | . . . . Shots Hit Robots 52 | . 15 25 12 Core Hits 43 | . 7 18 18 Critical Kills 1 | . . 1 . Critical Parts Destroyed 1 | . 1 . . Critical Strikes 2 | . 1 1 . Destroy 2 | . 1 1 . Melee Attacks . | . . . . Impact . | . . . . Slashing . | . . . . Piercing . | . . . . Sneak Attacks . | . . . . Combat Hostiles . | . . . . Follow-up Attacks . | . . . . Damage Inflicted 1878 | . 112 802 964 Guns 223 | . 112 111 . Cannons . | . . . . Explosions 1647 | . . 683 964 Melee . | . . . . Ramming 8 | . . 8 . Kinetic 223 | . 112 111 . Thermal . | . . . . Explosive 1647 | . . 683 964 Electromagnetic . | . . . . Impact . | . . . . Slashing . | . . . . Piercing . | . . . . Highest Corruption . | . . . . Average Corruption . | . . . . Corruption Purged . | . . . . Corruption Blocked . | . . . . Overload Shots . | . . . . Overflow Damage 33 | . . . 33 Projectiles . | . . . . Explosions 33 | . . . 33 Melee . | . . . . Knockbacks 1 | . . 1 . Impact 1 | . . 1 . Kinetic . | . . . . Secondary . | . . . . Self-Inflicted Damage 122 | . . 4 118 Shots 4 | . . . 4 Rammed 2 | . . 2 . Targets Rammed 2 | . . 2 . Kicked . | . . . . Crushed . | . . . . Highest Temperature 111 | . . 111 53 Average Temperature 25 | . . 29 14 Received Heat Transfer 126 | . 6 75 45 Siege Activations . | . . . . Martial Activations . | . . . . Shielding Activations . | . . . . Robots Disrupted . | . . . . Combat Hostiles . | . . . . Robots Corrupted . | . . . . Combat Hostiles . | . . . . Parts Fried . | . . . . Impact Corruptions . | . . . . Robots Melted . | . . . . Combat Hostiles . | . . . . Parts Melted . | . . . . Heat Transferred . | . . . . Parts Sabotaged . | . . . . Parts Stolen . | . . . . Parts Stripped . | . . . . Power Chain Reactions . | . . . . Alert | -11 -10 -9 -9 ------- Run | Yrd Mat Mat Min Maximum Alert Level 1 | . . . 1 Low Security (%) 98 | . 100 100 93 Level 1 1 | . . . 6 Level 2 . | . . . . Level 3 . | . . . . Level 4 . | . . . . Level 5 . | . . . . High Security . | . . . . Max Security . | . . . . Peak Influence 234 | . 60 188 234 Initial 58 | . . . 58 Average 33 | . 16 32 57 Influence Increases 795 | . 120 359 316 Destroy 0b10 Robot/C 400 | . 80 160 160 Destroy 0b10 Robot/NC 45 | . . 20 25 Destroy Leader 92 | . 20 42 30 Trap Triggered on 0b10 10 | . 10 . . Successful Hack 41 | . 10 31 . Disable Machine 45 | . . 36 9 Destroy Structure 162 | . . 70 92 Influence Decreases 571 | . 120 181 270 Entered New Map 120 | . . . 120 Time Decay 411 | . 100 181 130 Lost Part 20 | . . . 20 Purge Threat 20 | . 20 . . Squads Dispatched 3 | . 1 1 1 Investigation 2 | . 1 . 1 Extermination . | . . . . Reinforcement 1 | . . 1 . Assault . | . . . . Garrison . | . . . . Intercept . | . . . . Searches Triggered . | . . . . Construction Impeded 1 | . . 1 . Haulers Reinforced . | . . . . Active Scanning Responses . | . . . . Cargo Convoy Interrupts . | . . . . Stealth | -11 -10 -9 -9 --------- Run | Yrd Mat Mat Min Distress Signals 1 | . . . 1 Communications Jammed . | . . . . Distress Signals . | . . . . Times Spotted 24 | . 6 12 6 Peak Tracking Total 4 | . 4 3 3 Tactical Retreats 1 | . . 1 . ECM-based Alert Blocks 2 | . . 2 . Traps | -11 -10 -9 -9 ------- Run | Yrd Mat Mat Min Traps Triggered 5 | . 1 4 . Indirectly . | . . . . Trap Hack Attempts . | . . . . Triggered . | . . . . Disarmed . | . . . . Reprogrammed 6 | . 6 . . Reused 1 | . 1 . . Traps Extracted . | . . . . Installed . | . . . . Triggered 1 | . 1 . . Machines | -11 -10 -9 -9 ---------- Run | Yrd Mat Mat Min Machines Disabled 9 | . . 7 2 Max in Single Turn 3 | . . 3 2 Machines Repaired . | . . . . Machines Dismantled . | . . . . Machines Sabotaged . | . . . . Overloaded Fab Kills . | . . . . Hacking | -11 -10 -9 -9 --------- Run | Yrd Mat Mat Min Machines Accessed 6 | . 2 3 1 Terminals 4 | . 2 2 . Fabricators . | . . . . Repair Stations . | . . . . Recycling Units . | . . . . Scanalyzers 1 | . . 1 . Garrison Access . | . . . . Total Hacks 16 | . 7 8 1 Successful 10 | . 4 5 1 Failed 6 | . 3 3 . Catastrophic . | . . . . Database Lockouts . | . . . . Manual 5 | . 1 4 . Terminals 13 | . 7 6 . Fabricators . | . . . . Repair Stations . | . . . . Recycling Units . | . . . . Scanalyzers 2 | . . 2 . Garrison Access . | . . . . Terminal Hacks 8 | . 4 3 1 Robot Analysis 1 | . . 1 . Open Door 1 | . . . 1 Branch Access Points 1 | . 1 . . Emergency Access Points 1 | . 1 . . Terminal Index 1 | . . 1 . Scanalyzer Index 1 | . . 1 . Unreport Threat 1 | . 1 . . Reprogram Traps 1 | . 1 . . Fabricator Hacks . | . . . . Repair Station Hacks . | . . . . Recycling Unit Hacks . | . . . . Scanalyzer 2 | . . 2 . Retrieve Study 2 | . . 2 . Garrison Access Hacks . | . . . . Unauthorized Hacks . | . . . . Terminals . | . . . . Fabricators . | . . . . Repair Stations . | . . . . Recycling Units . | . . . . Scanalyzers . | . . . . Garrison Access . | . . . . Data Cores Recovered . | . . . . Used . | . . . . Hacking Detections 5 | . 2 3 . Full Trace Events . | . . . . Feedback Events . | . . . . Feedback Blocked . | . . . . Robot Schematics Acquired . | . . . . Robots Built . | . . . . Authchips . | . . . . Time . | . . . . Total Robot Build Rating . | . . . . Part Schematics Acquired . | . . . . Parts Built . | . . . . Authchips . | . . . . Time . | . . . . Total Part Build Rating . | . . . . Part Studies Acquired 1 | . . 1 . Parts Repaired . | . . . . Time . | . . . . Parts Recycled . | . . . . Recycled Matter . | . . . . Retrieved Matter . | . . . . Retrieved Components . | . . . . Parts Scanalyzed . | . . . . Part Schematics Acquired . | . . . . Parts Damaged . | . . . . Bothacking | -11 -10 -9 -9 ------------ Run | Yrd Mat Mat Min Used RIF Installer . | . . . . Robots Hacked . | . . . . Non-combat . | . . . . Combat . | . . . . Robot Hacks Applied . | . . . . Relay Couplers Released . | . . . . Fabnet Peak Effective % . | . . . . Robots Rewired . | . . . . Allies Hacked . | . . . . Hacks Repelled . | . . . . Allies | -11 -10 -9 -9 -------- Run | Yrd Mat Mat Min Total Allies . | . . . . Largest Group . | . . . . Highest-Rated Group . | . . . . Highest-Rated Ally . | . . . . Total Orders . | . . . . Ally Attacks . | . . . . Total Damage . | . . . . Kills . | . . . . Allies Corrupted . | . . . . Allies Melted . | . . . . Intel | -11 -10 -9 -9 ------- Run | Yrd Mat Mat Min Active Infowar (turns) 1382 | . 218 898 266 Sensors 1025 | . . 759 266 ECM 357 | . 218 139 . Robot Analysis Total 1 | . . 1 . Derelict Logs Recovered 2 | . . . 2 Drone Launches . | . . . . Drone Recoveries . | . . . . Exploration | -11 -10 -9 -9 ------------- Run | Yrd Mat Mat Min Turns Passed 1501 | . 333 899 269 Spaces Moved 975 | 1 229 455 290 Core 1 | . . 1 . Treads . | . . . . Legs 85 | 1 84 . . Wheels 247 | . 145 102 . Hover . | . . . . Flight 642 | . . 352 290 Fastest Speed 34 | 120 105 34 34 Average Speed 128 | 120 114 166 79 Slowest Speed 1240 | 120 260 1240 110 Overloaded Moves . | . . . . Propulsion Burnouts . | . . . . Robots Hopped . | . . . . Potential Cave-ins . | . . . . Cave-ins Triggered . | . . . . Exploration Rate (%) 34 | 2 37 25 72 Regions Visited 3 Branch Regions 1 Pre-discovered Areas . | . . . . Known Exits Taken . | . . . . Unknown Exits Taken 3 | 1 1 1 . Scrap Searched 1 | . . . 1 Spaces Dug . | . . . . Terrain Destroyed 230 | . . 86 144 Melee . | . . . . Projectile . | . . . . AOE 230 | . . 86 144 Terrain Rammed . | . . . . Walls Destroyed . | . . . . Machines Disabled . | . . . . Actions | -11 -10 -9 -9 --------- Run | Yrd Mat Mat Min Total 1170 | . 284 575 311 Wait 6 | . . 6 . Move 972 | . 228 454 290 Hop . | . . . . Pick Up 54 | . 20 32 2 Fast Attach . | . . . . Attach 28 | . 6 21 1 Detach 11 | . 3 8 . Swap . | . . . . Drop 43 | . 12 28 3 Fire 54 | . 15 24 15 Melee . | . . . . Ram 2 | . . 2 . Kick . | . . . . Crush . | . . . . Escape Stasis . | . . . . Rewire . | . . . . Trap . | . . . . Miscellaneous . | . . . . Route ------- -11/Scrapyard -10/Materials (discovered 2 exits: *Mat / Min) -9/Materials (discovered 2 exits: *Min / [*Sto]) -9/Mines (discovered 1 exit: [*Mat]) History --------- Turn | Location | Event 1 | -11/Scrapyard | Discovered new exit (range 0) 1 | -11/Scrapyard | Entered Materials 259 | -10/Materials | Identified exit to Mines 302 | -10/Materials | Build established: Mutant 307 | -10/Materials | Discovered new exit (range 16) 334 | -10/Materials | Entered another Materials area 334 | -9/Materials | Evolved 2 slots: Power x1, Propulsion x1 335 | -9/Materials | Discovered new exit (range 5) 1139 | -9/Materials | Discovered new exit (range 12) 1233 | -9/Materials | Entered Mines 1281 | -9/Mines | Learned Materials terminal intel 1284 | -9/Mines | Received a Rocket Launcher from a helpful Derelict 1370 | -9/Mines | Found a hidden stash of uninstalled traps 1454 | -9/Mines | Discovered new exit (range 11) 1469 | -9/Mines | Learned Materials security intel 1471 | -9/Mines | Met a Derelict shopkeep closing up shop 1502 | -9/Mines | Self-destructed Last Messages --------------- 01473_ ALERT: Derelict activity detected in mines. Dispatching investigation squad. 01473_ Machine disabled. 01473_ SHOP.Sys disabled. 01475_ 9F-06D(g): "Well, take what you want I guess, I've had enough of this place!" 01478_ The unstable cave ceiling collapses. 01481_ G-34 Mercenary destroyed. 01481_ Destroyed Lgt. Ion Engine. 01481_ K-01 Serf destroyed. 01481_ R-06 Scavenger distress signal alerts nearby ally. 01483_ The unstable cave ceiling collapses. 01484_ G-34 Mercenary destroyed. 01491_ K-01 Serf destroyed. 01492_ The unstable cave ceiling collapses. 01495_ Acquired 2 matter. 01497_ The unstable cave ceiling collapses. 01499_ Dropped Imp. Sensor Array. 01500_ The unstable cave ceiling collapses. 01500_ Acquired Sml. Matter Pod. Map ----- +----------------------------------------------------+ | ??????????????????????????????????? | | ??????????????????????????????????? | | ??????????????????????????????????? | | ??????????????????????????????????? | | ??????????????????????????????????? | | ??????????????????????????????????? | | ??????????????????????????????????? | | ??????????????????????????????????? | | ??????????????????????????????????? | | ??????????????????????????????????? | | ????????????? ??????????????????? | | ????????????? ?????????????????? | | ????????????? #?????????????????? | | ???????###??? #?????????????????? | | ??????## ##??# #?????????????????? | | ??????# ##?# #?####????????????? | | ####??# ### ## #????????????? | | ##### ## #????????????? | | # !# # #?????????????? | | ! ! #??????????????? | | #########???????? | | = ### ## #####???? | | [ / # # #???? | | # [ # # #???? | | ## ## ## #???? | | ##### = g @! < #???? | | ### ## * ! #???? | | ## ####### # #???? | | ## #?????# ####???? | | ## ##?????### # # #??????? | | #####????????# ###########??? | | #????????????# ###### #??? | | ##????????????# ## #??? | | ##?????????????# #???? | | ##?????????????## ######???? | | #??????????????# ##????????? | | #??????????????# ###?????????? | | ##?????????????## ##????????##?? | | #?????????????## #????????? ##? | | ??????????????# ##??????? #? | | ??????????????# ##?????# #? | | ??????????????# ##???# #? | | ??????????????# #### #?? | | ??????????????# #?? | | ######????????## #??? | | #?????????# #####= ####??? | | #?????????## ### #?????? | | ### #??????????#### # #?????? | | ??# #????????????# #?????? | | ??# #????????????## # #?????? | +----------------------------------------------------+ Best States ------------- Heat Dissipation 28 Energy Generation 23 Energy Capacity 450 Matter Stores 300 Matter Capacity 300 Sight Range 16 Robot Scan Range 15 Terrain Scan Density 10 ECM Strength 1 Additional Mass Support 6 Resistance: KI 20 Resistance: TH 20 Resistance: EX 20 Resistance: EM 20 Resistance: I 20 Resistance: S 20 Resistance: P 20 Evasion (%) 63 Offensive Hacking 10 Item Schematics ----------------- None Robot Schematics ------------------ None Fabricated ------------ Nothing Repaired ---------- Nothing Studied --------- Flight Unit | -9/Materials | Hacked Alien Tech Used ----------------- None Achievements -------------- None Challenges ------------ None Game ------ Seed HypervelocityMiniMediator Manual? 0 Play Time 00:15:37 Cumulative 20.7 hours Start 2026.04.08 @ 11:57:54 End 2026.04.08 @ 12:13:27 Sessions 1 Manual Loads 0 Difficulty Adventurer Special Mode None Game No. 44 Rogue 28 Adventurer 16 Explorer 0 Win Type - Total 0 Types 0/0/0/0/0/0/0/0/0/0 Lore% 23 Gallery% 23 Achievement% 19 Wizard Run 0 Options --------- Layout 0 ASCII 0 Keyboard 1 Movement Numpad Keybinds 0 Fullscreen 2 Font 18/Terminus Map View 76x50 Zoom Use 0% Tactical HUD 1 Map Filters NONE Filters NONE Steam 1 RUN: d5b05845-a720-4e2c-b6c9-75ef027bdb23